[Event "Titled Tuesday Blitz February 07 Late 2023"]
[White "Al-Tarboush, Ward"]
[Black "Carrasco Miranda, Andres"]
[WhiteFideId "7601450"]
[BlackFideId "3405990"]
[WhiteElo "2256"]
[BlackElo "2240"]
[Result "1-0"]
[Round "03"]
[TimeControl "180+2"]
[Date "2023.02.07"]
[WhiteClock "0:00:48"]
[BlackClock "0:00:13"]

1. e4 {[%clk 0:02:59]}  c5 {[%clk 0:02:58]} 2. Nf3 {[%clk 0:02:59]}  d6 {[%clk 0:02:58]} 3. d4 {[%clk 0:03:00]}  cxd4 {[%clk 0:02:59]} 4. Nxd4 {[%clk 0:03:00]}  Nf6 {[%clk 0:02:59]} 5. Nc3 {[%clk 0:03:01]}  a6 {[%clk 0:03:00]} 6. h3 {[%clk 0:03:01]}  e5 {[%clk 0:02:58]} 7. Nde2 {[%clk 0:03:01]}  h5 {[%clk 0:02:57]} 8. Bg5 {[%clk 0:03:00]}  Nbd7 {[%clk 0:02:56]} 9. Nd5 {[%clk 0:02:53]}  Qa5+ {[%clk 0:02:50]} 10. b4 {[%clk 0:02:52]}  Qd8 {[%clk 0:02:42]} 11. c4 {[%clk 0:02:51]}  Be7 {[%clk 0:02:38]} 12. Nxe7 {[%clk 0:02:49]}  Qxe7 {[%clk 0:02:39]} 13. Nc3 {[%clk 0:02:49]}  Qe6 {[%clk 0:02:26]} 14. Be2 {[%clk 0:02:37]}  O-O {[%clk 0:02:13]} 15. O-O {[%clk 0:02:34]}  a5 {[%clk 0:01:59]} 16. b5 {[%clk 0:02:22]}  Nc5 {[%clk 0:01:55]} 17. Nd5 {[%clk 0:02:16]}  Nxd5 {[%clk 0:01:54]} 18. exd5 {[%clk 0:02:17]}  Qf5 {[%clk 0:01:45]} 19. Be7 {[%clk 0:02:16]}  Ne4 {[%clk 0:01:28]} 20. Bxf8 {[%clk 0:02:12]}  Kxf8 {[%clk 0:01:28]} 21. Bd3 {[%clk 0:02:12]}  Qg6 {[%clk 0:01:22]} 22. Bxe4 {[%clk 0:02:12]}  Qxe4 {[%clk 0:01:22]} 23. Qxh5 {[%clk 0:02:12]}  Kg8 {[%clk 0:01:20]} 24. Rac1 {[%clk 0:01:59]}  b6 {[%clk 0:01:13]} 25. Rfe1 {[%clk 0:01:56]}  Qd3 {[%clk 0:01:11]} 26. Qh4 {[%clk 0:01:53]}  f6 {[%clk 0:01:08]} 27. Qg3 {[%clk 0:01:50]}  Qd2 {[%clk 0:01:05]} 28. Qe3 {[%clk 0:01:49]}  Qxe3 {[%clk 0:01:03]} 29. Rxe3 {[%clk 0:01:49]}  Bf5 {[%clk 0:01:01]} 30. g4 {[%clk 0:01:48]}  Bg6 {[%clk 0:01:01]} 31. a4 {[%clk 0:01:45]}  Rc8 {[%clk 0:01:00]} 32. Rec3 {[%clk 0:01:44]}  Kf7 {[%clk 0:00:58]} 33. f3 {[%clk 0:01:44]}  Ke7 {[%clk 0:00:57]} 34. Kf2 {[%clk 0:01:44]}  Bf7 {[%clk 0:00:56]} 35. Kg3 {[%clk 0:01:43]}  g5 {[%clk 0:00:56]} 36. h4 {[%clk 0:01:38]}  gxh4+ {[%clk 0:00:55]} 37. Kxh4 {[%clk 0:01:39]}  Rh8+ {[%clk 0:00:55]} 38. Kg3 {[%clk 0:01:39]}  Rc8 {[%clk 0:00:49]} 39. f4 {[%clk 0:01:38]}  Rh8 {[%clk 0:00:38]} 40. fxe5 {[%clk 0:01:20]}  fxe5 {[%clk 0:00:39]} 41. R3c2 {[%clk 0:01:19]}  Bg6 {[%clk 0:00:36]} 42. Rh2 {[%clk 0:01:16]}  Rf8 {[%clk 0:00:31]} 43. Rf2 {[%clk 0:01:11]}  Rh8 {[%clk 0:00:30]} 44. Rh2 {[%clk 0:01:11]}  Rf8 {[%clk 0:00:30]} 45. Rh6 {[%clk 0:01:11]}  Bd3 {[%clk 0:00:26]} 46. g5 {[%clk 0:01:00]}  Rf4 {[%clk 0:00:24]} 47. Re6+ {[%clk 0:00:59]}  Kd7 {[%clk 0:00:24]} 48. g6 {[%clk 0:01:00]}  Rf5 {[%clk 0:00:20]} 49. Kh4 {[%clk 0:00:52]}  e4 {[%clk 0:00:13]} 50. g7 {[%clk 0:00:48]} 1-0


[Site "https://www.chess.com"]

[Event "Titled Tuesday Blitz February 07 Late 2023"]
[White "Martinez Reyes, Pedro Ramon"]
[Black "Schuster, Karsten"]
[WhiteFideId "3901807"]
[BlackFideId "4611071"]
[WhiteElo "2376"]
[BlackElo "2309"]
[Result "0-1"]
[Round "03"]
[TimeControl "180+2"]
[Date "2023.02.07"]
[WhiteClock "0:02:05"]
[BlackClock "0:00:24"]

1. e4 {[%clk 0:03:00]}  c6 {[%clk 0:03:00]} 2. c4 {[%clk 0:02:58]}  d5 {[%clk 0:03:01]} 3. cxd5 {[%clk 0:02:58]}  cxd5 {[%clk 0:03:01]} 4. exd5 {[%clk 0:02:59]}  Nf6 {[%clk 0:03:01]} 5. Qa4+ {[%clk 0:02:59]}  Bd7 {[%clk 0:02:59]} 6. Qb3 {[%clk 0:02:59]}  Na6 {[%clk 0:02:59]} 7. d4 {[%clk 0:02:58]}  Qa5+ {[%clk 0:02:48]} 8. Nc3 {[%clk 0:02:56]}  Rc8 {[%clk 0:01:45]} 9. Nf3 {[%clk 0:02:50]}  g6 {[%clk 0:01:35]} 10. Ne5 {[%clk 0:02:47]}  Bg7 {[%clk 0:01:34]} 11. Nxd7 {[%clk 0:02:47]}  Nxd7 {[%clk 0:01:33]} 12. Qxb7 {[%clk 0:02:43]}  Rxc3 {[%clk 0:01:24]} 13. Bd2 {[%clk 0:02:43]}  Qc7 {[%clk 0:01:18]} 14. Bxa6 {[%clk 0:02:27]}  Qxb7 {[%clk 0:01:10]} 15. Bxb7 {[%clk 0:02:28]}  Rc2 {[%clk 0:01:10]} 16. Bc3 {[%clk 0:02:27]}  O-O {[%clk 0:00:51]} 17. Ba6 {[%clk 0:02:26]}  Rb8 {[%clk 0:00:39]} 18. Bd3 {[%clk 0:02:22]}  Rbxb2 {[%clk 0:00:39]} 19. Bxb2 {[%clk 0:02:23]}  Rxb2 {[%clk 0:00:38]} 20. Rb1 {[%clk 0:02:21]}  Bxd4 {[%clk 0:00:35]} 21. Rxb2 {[%clk 0:02:20]}  Bxb2 {[%clk 0:00:35]} 22. Ke2 {[%clk 0:02:21]}  Nb6 {[%clk 0:00:33]} 23. Rb1 {[%clk 0:02:22]}  Bd4 {[%clk 0:00:32]} 24. Rb5 {[%clk 0:02:19]}  Kf8 {[%clk 0:00:30]} 25. Be4 {[%clk 0:02:17]}  Ke8 {[%clk 0:00:30]} 26. a4 {[%clk 0:02:15]}  Nxa4 {[%clk 0:00:27]} 27. Rb4 {[%clk 0:02:13]}  Nc3+ {[%clk 0:00:26]} 28. Kd3 {[%clk 0:02:13]}  Nxe4 {[%clk 0:00:25]} 29. Kxd4 {[%clk 0:02:06]}  Nxf2 {[%clk 0:00:25]} 30. Kc5 {[%clk 0:02:06]}  Nd3+ {[%clk 0:00:24]} 31. Kc4 {[%clk 0:02:04]}  Nxb4 {[%clk 0:00:24]} 32. Kxb4 {[%clk 0:02:05]}  Kd7 {[%clk 0:00:24]} 0-1


[Site "https://www.chess.com"]

[Event "Titled Tuesday Blitz February 07 Late 2023"]
[White "Jeziel_Vale"]
[Black "Dobrikov, Marco"]
[BlackFideId "12950378"]
[WhiteElo "2276"]
[BlackElo "2269"]
[Result "0-1"]
[Round "03"]
[TimeControl "180+2"]
[Date "2023.02.07"]
[WhiteClock "0:00:03"]
[BlackClock "0:01:02"]

1. d4 {[%clk 0:03:00]}  Nf6 {[%clk 0:02:58]} 2. c4 {[%clk 0:02:59]}  g6 {[%clk 0:02:58]} 3. Nc3 {[%clk 0:02:59]}  d5 {[%clk 0:02:59]} 4. cxd5 {[%clk 0:03:00]}  Nxd5 {[%clk 0:03:00]} 5. e4 {[%clk 0:03:00]}  Nxc3 {[%clk 0:03:00]} 6. bxc3 {[%clk 0:03:01]}  Bg7 {[%clk 0:03:01]} 7. Nf3 {[%clk 0:02:59]}  O-O {[%clk 0:03:01]} 8. Be2 {[%clk 0:02:56]}  c5 {[%clk 0:03:02]} 9. Rb1 {[%clk 0:02:55]}  Qa5 {[%clk 0:03:00]} 10. Bd2 {[%clk 0:02:38]}  Qxa2 {[%clk 0:02:58]} 11. Ra1 {[%clk 0:02:38]}  Qe6 {[%clk 0:02:57]} 12. d5 {[%clk 0:02:37]}  Qd6 {[%clk 0:02:45]} 13. O-O {[%clk 0:02:30]}  e5 {[%clk 0:02:37]} 14. c4 {[%clk 0:02:05]}  b6 {[%clk 0:02:34]} 15. Qc1 {[%clk 0:02:00]}  Na6 {[%clk 0:02:09]} 16. Bh6 {[%clk 0:01:58]}  Bxh6 {[%clk 0:02:08]} 17. Qxh6 {[%clk 0:01:57]}  f6 {[%clk 0:02:09]} 18. Nh4 {[%clk 0:01:48]}  Rf7 {[%clk 0:02:01]} 19. f4 {[%clk 0:01:46]}  Nb4 {[%clk 0:01:56]} 20. fxe5 {[%clk 0:01:25]}  Qxe5 {[%clk 0:01:56]} 21. Nf3 {[%clk 0:01:25]}  Qxe4 {[%clk 0:01:47]} 22. Rae1 {[%clk 0:01:15]}  Nc2 {[%clk 0:01:44]} 23. Bd3 {[%clk 0:01:04]}  Qxe1 {[%clk 0:01:44]} 24. Rxe1 {[%clk 0:01:03]}  Nxe1 {[%clk 0:01:44]} 25. Nxe1 {[%clk 0:01:04]}  a5 {[%clk 0:01:41]} 26. d6 {[%clk 0:00:57]}  a4 {[%clk 0:01:39]} 27. Be4 {[%clk 0:00:57]}  Bb7 {[%clk 0:01:39]} 28. Bxb7 {[%clk 0:00:40]}  Rxb7 {[%clk 0:01:39]} 29. Nc2 {[%clk 0:00:40]}  a3 {[%clk 0:01:39]} 30. Qf4 {[%clk 0:00:38]}  Kf7 {[%clk 0:01:32]} 31. Qf3 {[%clk 0:00:37]}  Rba7 {[%clk 0:01:30]} 32. Qd5+ {[%clk 0:00:37]}  Kf8 {[%clk 0:01:30]} 33. d7 {[%clk 0:00:35]}  Rd8 {[%clk 0:01:29]} 34. Qd6+ {[%clk 0:00:33]}  Kf7 {[%clk 0:01:27]} 35. Qxb6 {[%clk 0:00:31]}  Rdxd7 {[%clk 0:01:25]} 36. Qxc5 {[%clk 0:00:20]}  a2 {[%clk 0:01:25]} 37. h3 {[%clk 0:00:12]}  Kg7 {[%clk 0:01:26]} 38. Kh2 {[%clk 0:00:12]}  Rab7 {[%clk 0:01:20]} 39. Na1 {[%clk 0:00:11]}  Rb1 {[%clk 0:01:18]} 40. Qc6 {[%clk 0:00:08]}  Rf7 {[%clk 0:01:15]} 41. c5 {[%clk 0:00:04]}  Rxa1 {[%clk 0:01:15]} 42. Qa4 {[%clk 0:00:04]}  Re7 {[%clk 0:01:05]} 43. c6 {[%clk 0:00:03]}  Rh1+ {[%clk 0:01:02]} 44. Kxh1 {[%clk 0:00:03]}  Re1+ {[%clk 0:01:02]} 0-1


[Site "https://www.chess.com"]

[Event "Titled Tuesday Blitz February 07 Late 2023"]
[White "Talbi, Chafik"]
[Black "Krallis, Christos"]
[WhiteFideId "7903715"]
[BlackFideId "4298896"]
[WhiteElo "2224"]
[BlackElo "2344"]
[Result "0-1"]
[Round "03"]
[TimeControl "180+2"]
[Date "2023.02.07"]
[WhiteClock "0:00:01"]
[BlackClock "0:00:15"]

1. e4 {[%clk 0:02:51]}  c5 {[%clk 0:02:58]} 2. Nf3 {[%clk 0:02:50]}  a6 {[%clk 0:02:53]} 3. c3 {[%clk 0:02:49]}  e6 {[%clk 0:02:50]} 4. d4 {[%clk 0:02:48]}  Nf6 {[%clk 0:02:50]} 5. e5 {[%clk 0:02:42]}  Nd5 {[%clk 0:02:49]} 6. Bc4 {[%clk 0:02:41]}  Nb6 {[%clk 0:02:47]} 7. Bd3 {[%clk 0:02:39]}  Nc6 {[%clk 0:02:47]} 8. O-O {[%clk 0:02:38]}  cxd4 {[%clk 0:02:44]} 9. cxd4 {[%clk 0:02:38]}  d6 {[%clk 0:02:45]} 10. Qe2 {[%clk 0:02:37]}  h6 {[%clk 0:02:40]} 11. Rd1 {[%clk 0:02:35]}  Nb4 {[%clk 0:02:31]} 12. Be4 {[%clk 0:02:17]}  d5 {[%clk 0:02:31]} 13. Bd3 {[%clk 0:02:17]}  Bd7 {[%clk 0:02:29]} 14. Nc3 {[%clk 0:02:16]}  Nxd3 {[%clk 0:02:28]} 15. Rxd3 {[%clk 0:02:12]}  Rc8 {[%clk 0:02:25]} 16. Nd2 {[%clk 0:01:51]}  Be7 {[%clk 0:02:04]} 17. Rg3 {[%clk 0:01:47]}  g6 {[%clk 0:01:56]} 18. Qd3 {[%clk 0:01:40]}  Bh4 {[%clk 0:01:50]} 19. Rf3 {[%clk 0:01:33]}  Bg5 {[%clk 0:01:45]} 20. g3 {[%clk 0:01:21]}  Na4 {[%clk 0:01:37]} 21. h4 {[%clk 0:01:10]}  Be7 {[%clk 0:01:29]} 22. Qe3 {[%clk 0:01:04]}  g5 {[%clk 0:01:08]} 23. hxg5 {[%clk 0:00:38]}  hxg5 {[%clk 0:01:06]} 24. g4 {[%clk 0:00:26]}  Qc7 {[%clk 0:00:49]} 25. Rh3 {[%clk 0:00:19]}  Rxh3 {[%clk 0:00:46]} 26. Qxh3 {[%clk 0:00:20]}  Nxc3 {[%clk 0:00:35]} 27. bxc3 {[%clk 0:00:19]}  Qxc3 {[%clk 0:00:32]} 28. Qxc3 {[%clk 0:00:16]}  Rxc3 {[%clk 0:00:31]} 29. Kg2 {[%clk 0:00:17]}  Bb5 {[%clk 0:00:18]} 30. Nf3 {[%clk 0:00:17]}  Be2 {[%clk 0:00:17]} 31. Nxg5 {[%clk 0:00:12]}  Bxg4 {[%clk 0:00:17]} 32. f3 {[%clk 0:00:09]}  Bf5 {[%clk 0:00:15]} 33. Bf4 {[%clk 0:00:07]}  b5 {[%clk 0:00:14]} 34. Kg3 {[%clk 0:00:04]}  b4 {[%clk 0:00:14]} 35. Rb1 {[%clk 0:00:03]}  a5 {[%clk 0:00:14]} 36. Rh1 {[%clk 0:00:02]}  Bxg5 {[%clk 0:00:13]} 37. Bxg5 {[%clk 0:00:02]}  Rxf3+ {[%clk 0:00:13]} 38. Kxf3 {[%clk 0:00:02]}  Be4+ {[%clk 0:00:14]} 39. Ke3 {[%clk 0:00:02]}  Bxh1 {[%clk 0:00:14]} 40. Kd2 {[%clk 0:00:01]}  Be4 {[%clk 0:00:15]} 41. Kc1 {[%clk 0:00:01]}  Kd7 {[%clk 0:00:15]} 42. Kb2 {[%clk 0:00:01]}  Kc6 {[%clk 0:00:15]} 0-1


[Site "https://www.chess.com"]

[Event "Titled Tuesday Blitz February 07 Late 2023"]
[White "Fisher_TheGalactic"]
[Black "Herbst, Richard"]
[BlackFideId "2041251"]
[WhiteElo "2561"]
[BlackElo "2120"]
[Result "1-0"]
[Round "03"]
[TimeControl "180+2"]
[Date "2023.02.07"]
[WhiteClock "0:00:33"]
[BlackClock "0:00:50"]

1. Nf3 {[%clk 0:03:00]}  d5 {[%clk 0:02:59]} 2. g3 {[%clk 0:03:00]}  g6 {[%clk 0:02:59]} 3. Bg2 {[%clk 0:03:01]}  Bg7 {[%clk 0:03:00]} 4. O-O {[%clk 0:03:00]}  e5 {[%clk 0:03:01]} 5. d3 {[%clk 0:02:59]}  Ne7 {[%clk 0:03:00]} 6. e4 {[%clk 0:02:58]}  O-O {[%clk 0:03:00]} 7. Nbd2 {[%clk 0:02:57]}  a5 {[%clk 0:02:59]} 8. exd5 {[%clk 0:02:57]}  Nxd5 {[%clk 0:02:59]} 9. Nc4 {[%clk 0:02:57]}  Nc6 {[%clk 0:02:59]} 10. Re1 {[%clk 0:02:56]}  Re8 {[%clk 0:02:58]} 11. c3 {[%clk 0:02:54]}  b5 {[%clk 0:02:55]} 12. Ne3 {[%clk 0:02:50]}  Be6 {[%clk 0:02:46]} 13. Ng5 {[%clk 0:02:47]}  Nxe3 {[%clk 0:02:44]} 14. Bxe3 {[%clk 0:02:42]}  Bd5 {[%clk 0:02:44]} 15. Ne4 {[%clk 0:02:28]}  f5 {[%clk 0:02:40]} 16. Nc5 {[%clk 0:02:26]}  Bxg2 {[%clk 0:02:40]} 17. Kxg2 {[%clk 0:02:27]}  Qd5+ {[%clk 0:02:40]} 18. Qf3 {[%clk 0:02:23]}  Rad8 {[%clk 0:02:35]} 19. Qxd5+ {[%clk 0:02:07]}  Rxd5 {[%clk 0:02:36]} 20. c4 {[%clk 0:02:08]}  bxc4 {[%clk 0:02:32]} 21. dxc4 {[%clk 0:02:09]}  Rd6 {[%clk 0:02:26]} 22. Rad1 {[%clk 0:02:03]}  e4 {[%clk 0:02:24]} 23. b3 {[%clk 0:01:55]}  Nd4 {[%clk 0:02:19]} 24. Nb7 {[%clk 0:01:51]}  Rd7 {[%clk 0:02:19]} 25. Rd2 {[%clk 0:01:43]}  c6 {[%clk 0:01:56]} 26. Nc5 {[%clk 0:01:38]}  Rdd8 {[%clk 0:01:53]} 27. Red1 {[%clk 0:01:34]}  Ne6 {[%clk 0:01:52]} 28. Nxe6 {[%clk 0:01:29]}  Rxd2 {[%clk 0:01:51]} 29. Rxd2 {[%clk 0:01:25]}  Rxe6 {[%clk 0:01:52]} 30. Rd7 {[%clk 0:01:24]}  Bc3 {[%clk 0:01:46]} 31. Kf1 {[%clk 0:01:11]}  h5 {[%clk 0:01:46]} 32. Ke2 {[%clk 0:01:11]}  Kf8 {[%clk 0:01:47]} 33. Bc5+ {[%clk 0:01:07]}  Ke8 {[%clk 0:01:47]} 34. Ra7 {[%clk 0:01:04]}  Re5 {[%clk 0:01:37]} 35. Bb6 {[%clk 0:01:03]}  Bb4 {[%clk 0:01:29]} 36. Ke3 {[%clk 0:00:57]}  g5 {[%clk 0:01:24]} 37. Kd4 {[%clk 0:00:53]}  Re7 {[%clk 0:01:20]} 38. Ra8+ {[%clk 0:00:46]}  Kf7 {[%clk 0:01:18]} 39. Bxa5 {[%clk 0:00:44]}  Rd7+ {[%clk 0:01:06]} 40. Ke5 {[%clk 0:00:43]}  Bxa5 {[%clk 0:00:59]} 41. Rxa5 {[%clk 0:00:44]}  Rd2 {[%clk 0:00:59]} 42. Kxf5 {[%clk 0:00:43]}  Rxf2+ {[%clk 0:00:59]} 43. Kxe4 {[%clk 0:00:42]}  Rxh2 {[%clk 0:01:00]} 44. Rxg5 {[%clk 0:00:38]}  Rxa2 {[%clk 0:01:00]} 45. Kd4 {[%clk 0:00:38]}  Ke6 {[%clk 0:00:51]} 46. Rxh5 {[%clk 0:00:35]}  Kd6 {[%clk 0:00:50]} 47. Rh6+ {[%clk 0:00:34]}  Kc7 {[%clk 0:00:51]} 48. b4 {[%clk 0:00:34]}  Rd2+ {[%clk 0:00:50]} 49. Kc5 {[%clk 0:00:33]} 1-0


[Site "https://www.chess.com"]

[Event "Titled Tuesday Blitz February 07 Late 2023"]
[White "MunichMouse"]
[Black "Veiga, Jose Francisco R P Neves"]
[BlackFideId "1930087"]
[WhiteElo "2253"]
[BlackElo "2406"]
[Result "0-1"]
[Round "03"]
[TimeControl "180+2"]
[Date "2023.02.07"]
[WhiteClock "0:00:20"]
[BlackClock "0:01:08"]

1. d4 {[%clk 0:03:00]}  g6 {[%clk 0:02:51]} 2. c4 {[%clk 0:02:59]}  Bg7 {[%clk 0:02:51]} 3. g3 {[%clk 0:03:00]}  c5 {[%clk 0:02:50]} 4. d5 {[%clk 0:03:00]}  e6 {[%clk 0:02:50]} 5. Bg2 {[%clk 0:02:59]}  exd5 {[%clk 0:02:50]} 6. cxd5 {[%clk 0:03:00]}  d6 {[%clk 0:02:50]} 7. Nc3 {[%clk 0:02:59]}  Nf6 {[%clk 0:02:50]} 8. Nf3 {[%clk 0:02:57]}  O-O {[%clk 0:02:51]} 9. O-O {[%clk 0:02:57]}  Bg4 {[%clk 0:02:49]} 10. Nd2 {[%clk 0:02:56]}  Re8 {[%clk 0:02:49]} 11. h3 {[%clk 0:02:55]}  Bc8 {[%clk 0:02:46]} 12. a4 {[%clk 0:02:54]}  b6 {[%clk 0:02:46]} 13. Nc4 {[%clk 0:02:54]}  Bb7 {[%clk 0:02:42]} 14. Bf4 {[%clk 0:02:53]}  Bf8 {[%clk 0:02:42]} 15. e4 {[%clk 0:02:53]}  Ba6 {[%clk 0:02:41]} 16. b3 {[%clk 0:02:52]}  Bxc4 {[%clk 0:02:40]} 17. bxc4 {[%clk 0:02:52]}  Nbd7 {[%clk 0:02:41]} 18. Re1 {[%clk 0:02:52]}  Ne5 {[%clk 0:02:41]} 19. Bxe5 {[%clk 0:02:50]}  Rxe5 {[%clk 0:02:41]} 20. f4 {[%clk 0:02:50]}  Re8 {[%clk 0:02:41]} 21. e5 {[%clk 0:02:51]}  Nh5 {[%clk 0:02:41]} 22. Qf3 {[%clk 0:02:44]}  dxe5 {[%clk 0:02:37]} 23. fxe5 {[%clk 0:02:40]}  Qg5 {[%clk 0:02:32]} 24. Ne4 {[%clk 0:02:14]}  Qxe5 {[%clk 0:02:28]} 25. g4 {[%clk 0:02:14]}  Qd4+ {[%clk 0:02:27]} 26. Kh1 {[%clk 0:01:59]}  Rxe4 {[%clk 0:02:26]} 27. gxh5 {[%clk 0:01:53]}  Rxe1+ {[%clk 0:02:23]} 28. Rxe1 {[%clk 0:01:52]}  Bd6 {[%clk 0:02:17]} 29. Qg4 {[%clk 0:01:27]}  Qxg4 {[%clk 0:02:16]} 30. hxg4 {[%clk 0:01:27]}  Kg7 {[%clk 0:02:12]} 31. Bf1 {[%clk 0:01:03]}  Kh6 {[%clk 0:02:11]} 32. Kg2 {[%clk 0:01:03]}  gxh5 {[%clk 0:02:10]} 33. gxh5 {[%clk 0:01:02]}  Kxh5 {[%clk 0:02:10]} 34. Kf3 {[%clk 0:01:02]}  Rg8 {[%clk 0:02:07]} 35. Be2 {[%clk 0:00:57]}  Rg3+ {[%clk 0:02:05]} 36. Ke4+ {[%clk 0:00:56]}  Kg6 {[%clk 0:02:04]} 37. Bf3 {[%clk 0:00:52]}  f5+ {[%clk 0:01:49]} 38. Ke3 {[%clk 0:00:52]}  h5 {[%clk 0:01:38]} 39. Rh1 {[%clk 0:00:51]}  Rg5 {[%clk 0:01:34]} 40. Rh3 {[%clk 0:00:43]}  Bg3 {[%clk 0:01:29]} 41. Rh1 {[%clk 0:00:41]}  h4 {[%clk 0:01:29]} 42. d6 {[%clk 0:00:30]}  Kf7 {[%clk 0:01:08]} 43. Bd5+ {[%clk 0:00:23]}  Ke8 {[%clk 0:01:08]} 44. Bc6+ {[%clk 0:00:23]}  Kd8 {[%clk 0:01:08]} 45. Kf3 {[%clk 0:00:20]}  Rg6 {[%clk 0:01:08]} 0-1


[Site "https://www.chess.com"]

[Event "Titled Tuesday Blitz February 07 Late 2023"]
[White "Clawitter, Craig"]
[Black "Filgueira, Hernan"]
[WhiteFideId "2023105"]
[BlackFideId "101770"]
[WhiteElo "2050"]
[BlackElo "2283"]
[Result "0-1"]
[Round "03"]
[TimeControl "180+2"]
[Date "2023.02.07"]
[WhiteClock "0:00:11"]
[BlackClock "0:00:57"]

1. e4 {[%clk 0:03:00]}  e6 {[%clk 0:02:59]} 2. d4 {[%clk 0:03:00]}  d5 {[%clk 0:02:59]} 3. e5 {[%clk 0:03:00]}  c5 {[%clk 0:02:59]} 4. c3 {[%clk 0:03:01]}  Nc6 {[%clk 0:02:58]} 5. Nf3 {[%clk 0:03:02]}  Bd7 {[%clk 0:02:58]} 6. Be2 {[%clk 0:03:01]}  Nge7 {[%clk 0:02:57]} 7. O-O {[%clk 0:03:01]}  Ng6 {[%clk 0:02:56]} 8. g3 {[%clk 0:02:55]}  Be7 {[%clk 0:02:54]} 9. h4 {[%clk 0:02:52]}  cxd4 {[%clk 0:02:51]} 10. cxd4 {[%clk 0:02:51]}  O-O {[%clk 0:02:51]} 11. h5 {[%clk 0:02:46]}  Nh8 {[%clk 0:02:51]} 12. h6 {[%clk 0:02:47]}  g6 {[%clk 0:02:51]} 13. Nc3 {[%clk 0:02:41]}  f6 {[%clk 0:02:49]} 14. Bd3 {[%clk 0:02:29]}  Nf7 {[%clk 0:02:48]} 15. exf6 {[%clk 0:02:20]}  Bxf6 {[%clk 0:02:48]} 16. Be3 {[%clk 0:02:20]}  Re8 {[%clk 0:02:33]} 17. Kg2 {[%clk 0:02:05]}  Rc8 {[%clk 0:02:25]} 18. Rc1 {[%clk 0:02:05]}  Ng5 {[%clk 0:02:10]} 19. Nxg5 {[%clk 0:01:45]}  Bxg5 {[%clk 0:02:10]} 20. Qg4 {[%clk 0:01:40]}  Bf6 {[%clk 0:02:00]} 21. Bxg6 {[%clk 0:01:26]}  hxg6 {[%clk 0:01:58]} 22. Qxg6+ {[%clk 0:01:27]}  Kh8 {[%clk 0:01:54]} 23. h7 {[%clk 0:01:03]}  Qe7 {[%clk 0:01:52]} 24. Ne2 {[%clk 0:01:00]}  Rf8 {[%clk 0:01:43]} 25. Rh1 {[%clk 0:00:53]}  Be8 {[%clk 0:01:39]} 26. Qg4 {[%clk 0:00:41]}  Bg7 {[%clk 0:01:35]} 27. Nf4 {[%clk 0:00:29]}  Rxf4 {[%clk 0:01:29]} 28. Qxf4 {[%clk 0:00:20]}  Bg6 {[%clk 0:01:27]} 29. Qg5 {[%clk 0:00:18]}  Qxg5 {[%clk 0:01:20]} 30. Bxg5 {[%clk 0:00:19]}  Bxh7 {[%clk 0:01:18]} 31. Rh4 {[%clk 0:00:17]}  Kg8 {[%clk 0:01:18]} 32. Rch1 {[%clk 0:00:14]}  Bf5 {[%clk 0:01:13]} 33. Be3 {[%clk 0:00:13]}  Ne7 {[%clk 0:01:08]} 34. Rc1 {[%clk 0:00:13]}  Rxc1 {[%clk 0:01:03]} 35. Bxc1 {[%clk 0:00:14]}  Ng6 {[%clk 0:01:03]} 36. Rh1 {[%clk 0:00:13]}  Bxd4 {[%clk 0:01:03]} 37. Rd1 {[%clk 0:00:12]}  Bb6 {[%clk 0:01:02]} 38. b3 {[%clk 0:00:12]}  Ne5 {[%clk 0:00:59]} 39. Bf4 {[%clk 0:00:12]}  Be4+ {[%clk 0:00:58]} 40. Kh3 {[%clk 0:00:12]}  Nd3 {[%clk 0:00:57]} 41. f3 {[%clk 0:00:11]}  Nf2+ {[%clk 0:00:57]} 0-1


[Site "https://www.chess.com"]

[Event "Titled Tuesday Blitz February 07 Late 2023"]
[White "Ismagilov, Damir"]
[Black "Zhang, Alan"]
[WhiteFideId "34199982"]
[BlackFideId "30936870"]
[WhiteElo "2156"]
[BlackElo "2001"]
[Result "1-0"]
[Round "03"]
[TimeControl "180+2"]
[Date "2023.02.07"]
[WhiteClock "0:00:34"]
[BlackClock "0:00:03"]

1. e4 {[%clk 0:03:00]}  e5 {[%clk 0:03:00]} 2. Nf3 {[%clk 0:03:00]}  Nc6 {[%clk 0:03:01]} 3. Nc3 {[%clk 0:03:01]}  Nf6 {[%clk 0:03:00]} 4. a4 {[%clk 0:03:01]}  Bb4 {[%clk 0:02:59]} 5. Bd3 {[%clk 0:03:01]}  O-O {[%clk 0:02:58]} 6. O-O {[%clk 0:03:01]}  d6 {[%clk 0:02:57]} 7. Nd5 {[%clk 0:03:01]}  Nxd5 {[%clk 0:02:56]} 8. exd5 {[%clk 0:03:02]}  Ne7 {[%clk 0:02:36]} 9. c3 {[%clk 0:03:02]}  Bc5 {[%clk 0:02:35]} 10. b4 {[%clk 0:03:02]}  Bb6 {[%clk 0:02:35]} 11. a5 {[%clk 0:03:02]}  f5 {[%clk 0:02:19]} 12. Ne1 {[%clk 0:02:35]}  e4 {[%clk 0:02:05]} 13. Bc2 {[%clk 0:02:19]}  Bd4 {[%clk 0:01:58]} 14. cxd4 {[%clk 0:02:18]}  Nxd5 {[%clk 0:01:57]} 15. Bb3 {[%clk 0:02:16]}  Be6 {[%clk 0:01:57]} 16. d3 {[%clk 0:02:13]}  Qf6 {[%clk 0:01:48]} 17. dxe4 {[%clk 0:01:51]}  fxe4 {[%clk 0:01:47]} 18. Bxd5 {[%clk 0:01:47]}  Bxd5 {[%clk 0:01:47]} 19. Nc2 {[%clk 0:01:47]}  Bc4 {[%clk 0:01:41]} 20. Be3 {[%clk 0:01:45]}  Bxf1 {[%clk 0:01:40]} 21. Qxf1 {[%clk 0:01:46]}  Rae8 {[%clk 0:01:39]} 22. Na3 {[%clk 0:01:43]}  d5 {[%clk 0:01:37]} 23. Qb5 {[%clk 0:01:41]}  Qd6 {[%clk 0:01:29]} 24. Qxb7 {[%clk 0:01:21]}  Rb8 {[%clk 0:01:28]} 25. Qxa7 {[%clk 0:01:21]}  Rxb4 {[%clk 0:01:03]} 26. Qc5 {[%clk 0:01:16]}  Qxc5 {[%clk 0:01:03]} 27. dxc5 {[%clk 0:01:17]}  d4 {[%clk 0:01:04]} 28. Nc2 {[%clk 0:01:12]}  dxe3 {[%clk 0:00:04]} 29. Nxb4 {[%clk 0:01:12]}  e2 {[%clk 0:00:05]} 30. Nc2 {[%clk 0:00:55]}  Rd8 {[%clk 0:00:05]} 31. Ne3 {[%clk 0:00:56]}  Rd3 {[%clk 0:00:03]} 32. Re1 {[%clk 0:00:46]}  Ra3 {[%clk 0:00:03]} 33. Rxe2 {[%clk 0:00:45]}  Rxa5 {[%clk 0:00:03]} 34. Rc2 {[%clk 0:00:42]}  Ra1+ {[%clk 0:00:02]} 35. Nf1 {[%clk 0:00:43]}  Kf7 {[%clk 0:00:03]} 36. Rc4 {[%clk 0:00:43]}  Re1 {[%clk 0:00:02]} 37. g3 {[%clk 0:00:41]}  Ke6 {[%clk 0:00:02]} 38. Kg2 {[%clk 0:00:42]}  Kd5 {[%clk 0:00:03]} 39. Rc2 {[%clk 0:00:40]}  c6 {[%clk 0:00:02]} 40. Ne3+ {[%clk 0:00:41]}  Kd4 {[%clk 0:00:03]} 41. Nf5+ {[%clk 0:00:41]}  Ke5 {[%clk 0:00:02]} 42. Nxg7 {[%clk 0:00:38]}  Rd1 {[%clk 0:00:02]} 43. Nh5 {[%clk 0:00:38]}  Kd5 {[%clk 0:00:01]} 44. Nf4+ {[%clk 0:00:38]}  Kd4 {[%clk 0:00:02]} 45. Re2 {[%clk 0:00:35]}  Ke5 {[%clk 0:00:03]} 46. Rb2 {[%clk 0:00:34]}  Rd5 {[%clk 0:00:03]} 1-0


[Site "https://www.chess.com"]